[Event "Titled Tuesday Blitz January 10 Early 2023"]
[White "Mahdavi, Reza"]
[Black "Andreikin, Dmitry"]
[WhiteFideId "12595926"]
[BlackFideId "4158814"]
[WhiteElo "2339"]
[BlackElo "2729"]
[Result "0-1"]
[Round "03"]
[TimeControl "180+2"]
[Date "2023.01.10"]
[WhiteClock "0:00:01"]
[BlackClock "0:00:46"]

1. e4 {[%clk 0:03:00]}  e6 {[%clk 0:02:59]} 2. d4 {[%clk 0:03:00]}  d5 {[%clk 0:02:59]} 3. Nc3 {[%clk 0:03:00]}  Bb4 {[%clk 0:02:58]} 4. exd5 {[%clk 0:02:55]}  exd5 {[%clk 0:02:58]} 5. Bd3 {[%clk 0:02:54]}  Nf6 {[%clk 0:02:58]} 6. Ne2 {[%clk 0:02:54]}  O-O {[%clk 0:02:58]} 7. O-O {[%clk 0:02:55]}  Re8 {[%clk 0:02:58]} 8. Bf4 {[%clk 0:02:55]}  c6 {[%clk 0:02:57]} 9. Qd2 {[%clk 0:02:55]}  Bg4 {[%clk 0:02:56]} 10. f3 {[%clk 0:02:56]}  Bh5 {[%clk 0:02:56]} 11. Rae1 {[%clk 0:02:56]}  Bg6 {[%clk 0:02:53]} 12. a3 {[%clk 0:02:56]}  Ba5 {[%clk 0:02:51]} 13. g4 {[%clk 0:02:56]}  Nbd7 {[%clk 0:02:50]} 14. h4 {[%clk 0:02:56]}  Bc7 {[%clk 0:02:42]} 15. Bxc7 {[%clk 0:02:55]}  Qxc7 {[%clk 0:02:42]} 16. Qf4 {[%clk 0:02:55]}  Qb6 {[%clk 0:02:36]} 17. Bxg6 {[%clk 0:02:43]}  hxg6 {[%clk 0:02:35]} 18. b4 {[%clk 0:02:35]}  Nf8 {[%clk 0:02:35]} 19. Rd1 {[%clk 0:01:59]}  Qa6 {[%clk 0:02:31]} 20. Rd3 {[%clk 0:02:00]}  Re7 {[%clk 0:02:23]} 21. a4 {[%clk 0:01:57]}  Rae8 {[%clk 0:02:20]} 22. Ng3 {[%clk 0:01:57]}  Qc4 {[%clk 0:02:19]} 23. Qd6 {[%clk 0:01:42]}  Ne6 {[%clk 0:02:03]} 24. Nge2 {[%clk 0:01:27]}  Nf8 {[%clk 0:02:01]} 25. Kf2 {[%clk 0:01:10]}  Rxe2+ {[%clk 0:01:53]} 26. Nxe2 {[%clk 0:01:11]}  Qxc2 {[%clk 0:01:53]} 27. Re3 {[%clk 0:00:56]}  Rxe3 {[%clk 0:01:52]} 28. Kxe3 {[%clk 0:00:57]}  Qxa4 {[%clk 0:01:50]} 29. Kf2 {[%clk 0:00:53]}  Ne6 {[%clk 0:01:43]} 30. Qb8+ {[%clk 0:00:40]}  Kh7 {[%clk 0:01:43]} 31. Qxb7 {[%clk 0:00:40]}  Qa2 {[%clk 0:01:40]} 32. Qxf7 {[%clk 0:00:35]}  Nxd4 {[%clk 0:01:35]} 33. Re1 {[%clk 0:00:35]}  Qd2 {[%clk 0:01:33]} 34. Qxa7 {[%clk 0:00:20]}  Nxf3 {[%clk 0:01:29]} 35. Ra1 {[%clk 0:00:15]}  Ne5 {[%clk 0:01:18]} 36. Ra2 {[%clk 0:00:13]}  Nfxg4+ {[%clk 0:01:12]} 37. Kg2 {[%clk 0:00:09]}  Qe1 {[%clk 0:01:12]} 38. Qg1 {[%clk 0:00:09]}  Qxh4 {[%clk 0:01:12]} 39. Qh1 {[%clk 0:00:08]}  Ne3+ {[%clk 0:01:12]} 40. Kg1 {[%clk 0:00:09]}  g5 {[%clk 0:01:12]} 41. Qxh4+ {[%clk 0:00:07]}  gxh4 {[%clk 0:01:13]} 42. Nd4 {[%clk 0:00:07]}  g5 {[%clk 0:01:10]} 43. Ra6 {[%clk 0:00:07]}  h3 {[%clk 0:01:05]} 44. Nxc6 {[%clk 0:00:02]}  Nf3+ {[%clk 0:00:45]} 45. Kf2 {[%clk 0:00:03]}  g4 {[%clk 0:00:46]} 46. Ra1 {[%clk 0:00:01]}  h2 {[%clk 0:00:46]} 0-1


[Site "https://www.chess.com"]

[Event "Titled Tuesday Blitz January 10 Early 2023"]
[White "Bluebaum, Matthias"]
[Black "Batsuren, Dambasuren"]
[WhiteFideId "24651516"]
[BlackFideId "4902920"]
[WhiteElo "2669"]
[BlackElo "2525"]
[Result "0-1"]
[Round "03"]
[TimeControl "180+2"]
[Date "2023.01.10"]
[WhiteClock "0:00:01"]
[BlackClock "0:00:05"]

1. d4 {[%clk 0:03:00]}  Nf6 {[%clk 0:02:59]} 2. c4 {[%clk 0:03:00]}  e6 {[%clk 0:03:00]} 3. Nc3 {[%clk 0:03:00]}  Bb4 {[%clk 0:03:00]} 4. e3 {[%clk 0:02:59]}  O-O {[%clk 0:03:01]} 5. Bd2 {[%clk 0:03:00]}  d5 {[%clk 0:02:56]} 6. Nf3 {[%clk 0:02:59]}  b6 {[%clk 0:02:55]} 7. cxd5 {[%clk 0:02:58]}  exd5 {[%clk 0:02:56]} 8. Rc1 {[%clk 0:02:59]}  a6 {[%clk 0:02:54]} 9. Bd3 {[%clk 0:02:59]}  Bb7 {[%clk 0:02:54]} 10. O-O {[%clk 0:02:59]}  Bd6 {[%clk 0:02:51]} 11. Ne5 {[%clk 0:02:59]}  c5 {[%clk 0:02:52]} 12. f4 {[%clk 0:02:59]}  Nc6 {[%clk 0:02:52]} 13. Ng4 {[%clk 0:03:00]}  cxd4 {[%clk 0:02:42]} 14. Nxf6+ {[%clk 0:02:57]}  Qxf6 {[%clk 0:02:43]} 15. Nxd5 {[%clk 0:02:57]}  Qd8 {[%clk 0:02:33]} 16. e4 {[%clk 0:02:54]}  Ne7 {[%clk 0:02:31]} 17. Nxe7+ {[%clk 0:02:46]}  Qxe7 {[%clk 0:02:20]} 18. e5 {[%clk 0:02:28]}  Bc5 {[%clk 0:02:21]} 19. Qh5 {[%clk 0:02:28]}  g6 {[%clk 0:02:17]} 20. Qh6 {[%clk 0:02:28]}  f6 {[%clk 0:01:58]} 21. b4 {[%clk 0:02:27]}  fxe5 {[%clk 0:01:33]} 22. fxe5 {[%clk 0:02:03]}  Qxe5 {[%clk 0:01:15]} 23. bxc5 {[%clk 0:01:59]}  bxc5 {[%clk 0:01:12]} 24. Rce1 {[%clk 0:01:48]}  Qd5 {[%clk 0:01:03]} 25. Rxf8+ {[%clk 0:01:32]}  Rxf8 {[%clk 0:01:03]} 26. Be4 {[%clk 0:01:32]}  Qd7 {[%clk 0:00:52]} 27. Bxb7 {[%clk 0:01:24]}  Qxb7 {[%clk 0:00:53]} 28. h4 {[%clk 0:01:18]}  Qf7 {[%clk 0:00:50]} 29. Kh1 {[%clk 0:01:09]}  Re8 {[%clk 0:00:41]} 30. Rxe8+ {[%clk 0:01:04]}  Qxe8 {[%clk 0:00:41]} 31. Qg5 {[%clk 0:01:04]}  Qe2 {[%clk 0:00:38]} 32. Qd5+ {[%clk 0:01:02]}  Kg7 {[%clk 0:00:38]} 33. Qd7+ {[%clk 0:01:01]}  Kg8 {[%clk 0:00:37]} 34. Qd5+ {[%clk 0:00:55]}  Kg7 {[%clk 0:00:38]} 35. Bg5 {[%clk 0:00:54]}  h6 {[%clk 0:00:23]} 36. Qd7+ {[%clk 0:00:53]}  Kg8 {[%clk 0:00:24]} 37. Qd8+ {[%clk 0:00:53]}  Kh7 {[%clk 0:00:20]} 38. Qc7+ {[%clk 0:00:31]}  Kg8 {[%clk 0:00:20]} 39. Be7 {[%clk 0:00:23]}  d3 {[%clk 0:00:16]} 40. Qd8+ {[%clk 0:00:22]}  Kf7 {[%clk 0:00:16]} 41. Bd6 {[%clk 0:00:11]}  Qe1+ {[%clk 0:00:10]} 42. Kh2 {[%clk 0:00:11]}  d2 {[%clk 0:00:11]} 43. Qd7+ {[%clk 0:00:08]}  Kf6 {[%clk 0:00:11]} 44. Bg3 {[%clk 0:00:05]}  d1=Q {[%clk 0:00:11]} 45. Qc6+ {[%clk 0:00:01]}  Qe6 {[%clk 0:00:10]} 46. Qxc5 {[%clk 0:00:02]}  Qdd7 {[%clk 0:00:10]} 47. Qf8+ {[%clk 0:00:02]}  Qef7 {[%clk 0:00:08]} 48. Qxh6 {[%clk 0:00:03]}  Ke7 {[%clk 0:00:08]} 49. Qg5+ {[%clk 0:00:03]}  Qf6 {[%clk 0:00:08]} 50. Qc5+ {[%clk 0:00:04]}  Kf7 {[%clk 0:00:09]} 51. Qc4+ {[%clk 0:00:04]}  Qfe6 {[%clk 0:00:09]} 52. Qf4+ {[%clk 0:00:05]}  Kg8 {[%clk 0:00:10]} 53. Qg5 {[%clk 0:00:04]}  Qde8 {[%clk 0:00:10]} 54. Qd2 {[%clk 0:00:04]}  Qe4 {[%clk 0:00:10]} 55. a4 {[%clk 0:00:04]}  Q8a8 {[%clk 0:00:08]} 56. a5 {[%clk 0:00:04]}  Qad5 {[%clk 0:00:08]} 57. Qb2 {[%clk 0:00:04]}  Kf7 {[%clk 0:00:07]} 58. Qf2+ {[%clk 0:00:04]}  Ke6 {[%clk 0:00:08]} 59. Qb2 {[%clk 0:00:04]}  Kd7 {[%clk 0:00:05]} 60. Qf2 {[%clk 0:00:01]}  Qdd4 {[%clk 0:00:05]} 61. Qf7+ {[%clk 0:00:01]}  Kc6 {[%clk 0:00:05]} 0-1


[Site "https://www.chess.com"]

[Event "Titled Tuesday Blitz January 10 Early 2023"]
[White "Boros, Denes"]
[Black "Jobava, Baadur"]
[WhiteFideId "722340"]
[BlackFideId "13601520"]
[WhiteElo "2406"]
[BlackElo "2578"]
[Result "1-0"]
[Round "03"]
[TimeControl "180+2"]
[Date "2023.01.10"]
[WhiteClock "0:00:17"]
[BlackClock "0:00:04"]

1. d4 {[%clk 0:03:00]}  Nf6 {[%clk 0:02:59]} 2. Nf3 {[%clk 0:03:01]}  g6 {[%clk 0:02:56]} 3. Nbd2 {[%clk 0:03:00]}  d5 {[%clk 0:02:55]} 4. b3 {[%clk 0:02:59]}  Bg7 {[%clk 0:02:55]} 5. Bb2 {[%clk 0:02:59]}  O-O {[%clk 0:02:56]} 6. e3 {[%clk 0:03:00]}  c6 {[%clk 0:02:55]} 7. Be2 {[%clk 0:03:00]}  a5 {[%clk 0:02:54]} 8. a4 {[%clk 0:02:56]}  Bf5 {[%clk 0:02:47]} 9. Ne5 {[%clk 0:02:57]}  Nfd7 {[%clk 0:02:39]} 10. Nd3 {[%clk 0:02:54]}  Bxd3 {[%clk 0:02:36]} 11. Bxd3 {[%clk 0:02:52]}  e5 {[%clk 0:02:36]} 12. O-O {[%clk 0:02:46]}  Re8 {[%clk 0:02:36]} 13. c4 {[%clk 0:02:44]}  exd4 {[%clk 0:02:32]} 14. exd4 {[%clk 0:02:41]}  Na6 {[%clk 0:02:21]} 15. cxd5 {[%clk 0:02:33]}  Nb4 {[%clk 0:02:21]} 16. Ne4 {[%clk 0:02:25]}  cxd5 {[%clk 0:02:09]} 17. Nd6 {[%clk 0:02:05]}  Re6 {[%clk 0:02:08]} 18. Nb5 {[%clk 0:02:05]}  Nb8 {[%clk 0:02:01]} 19. Be2 {[%clk 0:02:02]}  N8c6 {[%clk 0:02:00]} 20. Bg4 {[%clk 0:01:59]}  Re7 {[%clk 0:01:44]} 21. Qd2 {[%clk 0:01:57]}  h5 {[%clk 0:01:42]} 22. Bf3 {[%clk 0:01:56]}  Qd7 {[%clk 0:01:42]} 23. Rac1 {[%clk 0:01:44]}  Kh7 {[%clk 0:01:40]} 24. Rc5 {[%clk 0:01:32]}  b6 {[%clk 0:01:40]} 25. Rc3 {[%clk 0:01:31]}  Rae8 {[%clk 0:01:39]} 26. Bc1 {[%clk 0:01:21]}  Rd8 {[%clk 0:01:19]} 27. Qf4 {[%clk 0:01:13]}  Re6 {[%clk 0:01:12]} 28. Be3 {[%clk 0:00:57]}  Rde8 {[%clk 0:00:52]} 29. h4 {[%clk 0:00:41]}  R8e7 {[%clk 0:00:50]} 30. Rd1 {[%clk 0:00:40]}  Rf6 {[%clk 0:00:48]} 31. Qg3 {[%clk 0:00:40]}  Rfe6 {[%clk 0:00:44]} 32. Qf4 {[%clk 0:00:40]}  Rf6 {[%clk 0:00:40]} 33. Qg3 {[%clk 0:00:41]}  Bh6 {[%clk 0:00:39]} 34. Bg5 {[%clk 0:00:37]}  Bxg5 {[%clk 0:00:37]} 35. hxg5 {[%clk 0:00:36]}  Rfe6 {[%clk 0:00:38]} 36. Qf4 {[%clk 0:00:35]}  Kg7 {[%clk 0:00:38]} 37. g3 {[%clk 0:00:34]}  Re1+ {[%clk 0:00:35]} 38. Kg2 {[%clk 0:00:34]}  Rxd1 {[%clk 0:00:34]} 39. Bxd1 {[%clk 0:00:35]}  Re6 {[%clk 0:00:31]} 40. Bf3 {[%clk 0:00:35]}  Qe7 {[%clk 0:00:29]} 41. Re3 {[%clk 0:00:34]}  Rxe3 {[%clk 0:00:29]} 42. fxe3 {[%clk 0:00:34]}  Nd3 {[%clk 0:00:27]} 43. Qf6+ {[%clk 0:00:33]}  Qxf6 {[%clk 0:00:27]} 44. gxf6+ {[%clk 0:00:34]}  Kxf6 {[%clk 0:00:28]} 45. Bxd5 {[%clk 0:00:34]}  Ncb4 {[%clk 0:00:28]} 46. Bc4 {[%clk 0:00:32]}  g5 {[%clk 0:00:24]} 47. Nd6 {[%clk 0:00:30]}  h4 {[%clk 0:00:16]} 48. e4 {[%clk 0:00:26]}  Ne1+ {[%clk 0:00:12]} 49. Kh3 {[%clk 0:00:26]}  Nf3 {[%clk 0:00:10]} 50. e5+ {[%clk 0:00:26]}  Ke7 {[%clk 0:00:07]} 51. Nf5+ {[%clk 0:00:23]}  Kf8 {[%clk 0:00:07]} 52. gxh4 {[%clk 0:00:24]}  gxh4 {[%clk 0:00:08]} 53. Kg4 {[%clk 0:00:24]}  Nd2 {[%clk 0:00:05]} 54. Kxh4 {[%clk 0:00:18]}  Nc2 {[%clk 0:00:05]} 55. d5 {[%clk 0:00:17]}  Nf3+ {[%clk 0:00:04]} 56. Kg4 {[%clk 0:00:15]}  Nxe5+ {[%clk 0:00:05]} 57. Kf4 {[%clk 0:00:16]}  Nxc4 {[%clk 0:00:04]} 58. bxc4 {[%clk 0:00:17]}  Na3 {[%clk 0:00:05]} 59. d6 {[%clk 0:00:18]}  Ke8 {[%clk 0:00:05]} 60. Ke5 {[%clk 0:00:17]}  Nxc4+ {[%clk 0:00:04]} 61. Kd5 {[%clk 0:00:18]}  Nb2 {[%clk 0:00:04]} 62. Kc6 {[%clk 0:00:18]}  Nxa4 {[%clk 0:00:05]} 63. d7+ {[%clk 0:00:16]}  Kd8 {[%clk 0:00:05]} 64. Nd6 {[%clk 0:00:17]}  Ke7 {[%clk 0:00:04]} 65. Nb7 {[%clk 0:00:17]} 1-0


[Site "https://www.chess.com"]

[Event "Titled Tuesday Blitz January 10 Early 2023"]
[White "Pranav, V"]
[Black "Gareyev, Timur"]
[WhiteFideId "25060783"]
[BlackFideId "14200937"]
[WhiteElo "2597"]
[BlackElo "2617"]
[Result "0-1"]
[Round "03"]
[TimeControl "180+2"]
[Date "2023.01.10"]
[WhiteClock "0:00:02"]
[BlackClock "0:00:14"]

1. e4 {[%clk 0:03:00]}  e5 {[%clk 0:02:56]} 2. Nf3 {[%clk 0:03:01]}  Nc6 {[%clk 0:02:53]} 3. Bb5 {[%clk 0:03:00]}  a6 {[%clk 0:02:52]} 4. Ba4 {[%clk 0:03:00]}  Nf6 {[%clk 0:02:52]} 5. O-O {[%clk 0:03:00]}  Bc5 {[%clk 0:02:52]} 6. d3 {[%clk 0:02:47]}  d6 {[%clk 0:02:51]} 7. c3 {[%clk 0:02:46]}  Ba7 {[%clk 0:02:50]} 8. h3 {[%clk 0:02:46]}  h6 {[%clk 0:02:50]} 9. Nbd2 {[%clk 0:02:46]}  g5 {[%clk 0:02:49]} 10. Bxc6+ {[%clk 0:02:43]}  bxc6 {[%clk 0:02:49]} 11. d4 {[%clk 0:02:43]}  g4 {[%clk 0:02:48]} 12. hxg4 {[%clk 0:02:42]}  Nxg4 {[%clk 0:02:45]} 13. Re1 {[%clk 0:02:31]}  Rg8 {[%clk 0:02:38]} 14. Nf1 {[%clk 0:02:28]}  h5 {[%clk 0:02:33]} 15. Ng3 {[%clk 0:02:01]}  h4 {[%clk 0:02:26]} 16. Nf5 {[%clk 0:02:01]}  Bxf5 {[%clk 0:02:15]} 17. exf5 {[%clk 0:02:02]}  Qf6 {[%clk 0:02:15]} 18. Qa4 {[%clk 0:01:47]}  Kd7 {[%clk 0:02:07]} 19. Re2 {[%clk 0:00:42]}  Qxf5 {[%clk 0:01:56]} 20. d5 {[%clk 0:00:42]}  Bb6 {[%clk 0:01:09]} 21. Nd4 {[%clk 0:00:19]}  Qd3 {[%clk 0:00:49]} 22. Rd2 {[%clk 0:00:14]}  Qe4 {[%clk 0:00:43]} 23. Re2 {[%clk 0:00:13]}  Qxd5 {[%clk 0:00:39]} 24. Nf3 {[%clk 0:00:09]}  h3 {[%clk 0:00:38]} 25. c4 {[%clk 0:00:03]}  Qxf3 {[%clk 0:00:34]} 26. gxf3 {[%clk 0:00:03]}  Nxf2+ {[%clk 0:00:29]} 27. Kf1 {[%clk 0:00:03]}  h2 {[%clk 0:00:28]} 28. Rxf2 {[%clk 0:00:03]}  h1=Q+ {[%clk 0:00:24]} 29. Ke2 {[%clk 0:00:03]}  Bxf2 {[%clk 0:00:22]} 30. Qc2 {[%clk 0:00:03]}  Qh3 {[%clk 0:00:16]} 31. Qe4 {[%clk 0:00:02]}  Bd4 {[%clk 0:00:15]} 32. Kd3 {[%clk 0:00:01]}  f5 {[%clk 0:00:14]} 33. Qe2 {[%clk 0:00:02]}  Rg3 {[%clk 0:00:14]} 34. Bd2 {[%clk 0:00:01]}  Rxf3+ {[%clk 0:00:14]} 35. Kc2 {[%clk 0:00:02]}  Rf2 {[%clk 0:00:14]} 0-1


[Site "https://www.chess.com"]

[Event "Titled Tuesday Blitz January 10 Early 2023"]
[White "Zemlyanskii, Ivan"]
[Black "Anton Guijarro, David"]
[WhiteFideId "24249971"]
[BlackFideId "2285525"]
[WhiteElo "2300"]
[BlackElo "2690"]
[Result "0-1"]
[Round "03"]
[TimeControl "180+2"]
[Date "2023.01.10"]
[WhiteClock "0:00:07"]
[BlackClock "0:01:10"]

1. d4 {[%clk 0:03:00]}  Nf6 {[%clk 0:02:59]} 2. c4 {[%clk 0:03:01]}  e6 {[%clk 0:02:59]} 3. Nf3 {[%clk 0:03:02]}  d5 {[%clk 0:02:59]} 4. g3 {[%clk 0:03:03]}  Bb4+ {[%clk 0:02:58]} 5. Bd2 {[%clk 0:03:03]}  Be7 {[%clk 0:02:57]} 6. Bg2 {[%clk 0:03:03]}  O-O {[%clk 0:02:57]} 7. Qc2 {[%clk 0:03:03]}  Nbd7 {[%clk 0:02:58]} 8. O-O {[%clk 0:03:02]}  c6 {[%clk 0:02:57]} 9. Bf4 {[%clk 0:02:56]}  b6 {[%clk 0:02:56]} 10. Nbd2 {[%clk 0:02:56]}  Bb7 {[%clk 0:02:53]} 11. e4 {[%clk 0:02:56]}  Nh5 {[%clk 0:02:53]} 12. Be3 {[%clk 0:02:54]}  Nhf6 {[%clk 0:02:52]} 13. cxd5 {[%clk 0:02:49]}  cxd5 {[%clk 0:02:51]} 14. e5 {[%clk 0:02:50]}  Ng4 {[%clk 0:02:51]} 15. Bf4 {[%clk 0:02:41]}  g5 {[%clk 0:02:51]} 16. Be3 {[%clk 0:02:41]}  Nxe3 {[%clk 0:02:45]} 17. fxe3 {[%clk 0:02:42]}  g4 {[%clk 0:02:44]} 18. Nh4 {[%clk 0:02:12]}  Rc8 {[%clk 0:02:41]} 19. Qd1 {[%clk 0:02:02]}  h5 {[%clk 0:02:30]} 20. h3 {[%clk 0:01:53]}  Bxh4 {[%clk 0:02:22]} 21. gxh4 {[%clk 0:01:53]}  Qxh4 {[%clk 0:02:19]} 22. hxg4 {[%clk 0:01:43]}  hxg4 {[%clk 0:02:03]} 23. Rf4 {[%clk 0:01:23]}  f5 {[%clk 0:02:03]} 24. exf6 {[%clk 0:01:08]}  Nxf6 {[%clk 0:02:03]} 25. Qe2 {[%clk 0:00:58]}  Kg7 {[%clk 0:01:53]} 26. Raf1 {[%clk 0:00:38]}  Rh8 {[%clk 0:01:35]} 27. Rxf6 {[%clk 0:00:17]}  Qh2+ {[%clk 0:01:34]} 28. Kf2 {[%clk 0:00:18]}  Kxf6 {[%clk 0:01:30]} 29. Qxg4 {[%clk 0:00:18]}  Rcg8 {[%clk 0:01:26]} 30. Ke1+ {[%clk 0:00:11]}  Ke7 {[%clk 0:01:24]} 31. Qf3 {[%clk 0:00:12]}  Qg3+ {[%clk 0:01:18]} 32. Ke2 {[%clk 0:00:09]}  Ba6+ {[%clk 0:01:17]} 33. Kd1 {[%clk 0:00:09]}  Qxf3+ {[%clk 0:01:11]} 34. Rxf3 {[%clk 0:00:07]}  Rxg2 {[%clk 0:01:10]} 0-1


[Site "https://www.chess.com"]

[Event "Titled Tuesday Blitz January 10 Early 2023"]
[White "Vidit, Santosh Gujrathi"]
[Black "Putnam, Liam"]
[WhiteFideId "5029465"]
[BlackFideId "30938279"]
[WhiteElo "2731"]
[BlackElo "2285"]
[Result "1-0"]
[Round "03"]
[TimeControl "180+2"]
[Date "2023.01.10"]
[WhiteClock "0:00:57"]
[BlackClock "0:00:16"]

1. d4 {[%clk 0:03:00]}  Nf6 {[%clk 0:02:58]} 2. c4 {[%clk 0:03:00]}  e6 {[%clk 0:02:58]} 3. Nf3 {[%clk 0:02:58]}  Nc6 {[%clk 0:02:58]} 4. g3 {[%clk 0:02:55]}  Bb4+ {[%clk 0:02:50]} 5. Bd2 {[%clk 0:02:54]}  a5 {[%clk 0:02:48]} 6. Bg2 {[%clk 0:02:53]}  d6 {[%clk 0:02:48]} 7. O-O {[%clk 0:02:52]}  O-O {[%clk 0:02:48]} 8. Bg5 {[%clk 0:02:42]}  a4 {[%clk 0:02:43]} 9. a3 {[%clk 0:02:40]}  Ba5 {[%clk 0:02:44]} 10. Qxa4 {[%clk 0:02:39]}  Bd7 {[%clk 0:02:36]} 11. Qc2 {[%clk 0:02:36]}  h6 {[%clk 0:02:35]} 12. Bd2 {[%clk 0:02:27]}  Bb6 {[%clk 0:02:32]} 13. Bc3 {[%clk 0:02:26]}  Qe7 {[%clk 0:02:28]} 14. b4 {[%clk 0:02:15]}  e5 {[%clk 0:02:19]} 15. dxe5 {[%clk 0:02:15]}  dxe5 {[%clk 0:02:16]} 16. c5 {[%clk 0:02:15]}  Ba7 {[%clk 0:02:13]} 17. Nbd2 {[%clk 0:02:15]}  Rfe8 {[%clk 0:02:09]} 18. Rfd1 {[%clk 0:02:12]}  e4 {[%clk 0:02:04]} 19. Bxf6 {[%clk 0:02:10]}  gxf6 {[%clk 0:02:04]} 20. Qxe4 {[%clk 0:02:03]}  Qxe4 {[%clk 0:02:00]} 21. Nxe4 {[%clk 0:02:04]}  Rxe4 {[%clk 0:01:49]} 22. Rxd7 {[%clk 0:02:04]}  Bb8 {[%clk 0:01:49]} 23. b5 {[%clk 0:01:42]}  Na5 {[%clk 0:01:46]} 24. Rd8+ {[%clk 0:01:41]}  Kg7 {[%clk 0:01:45]} 25. Nd4 {[%clk 0:01:28]}  Re5 {[%clk 0:01:34]} 26. Rc1 {[%clk 0:01:27]}  h5 {[%clk 0:01:23]} 27. h4 {[%clk 0:01:26]}  f5 {[%clk 0:00:56]} 28. e3 {[%clk 0:01:24]}  Kf6 {[%clk 0:00:54]} 29. a4 {[%clk 0:01:23]}  Kg7 {[%clk 0:00:42]} 30. Bf3 {[%clk 0:01:22]}  Kg6 {[%clk 0:00:42]} 31. Rc3 {[%clk 0:01:19]}  Kf6 {[%clk 0:00:41]} 32. Ne2 {[%clk 0:01:09]}  c6 {[%clk 0:00:35]} 33. Nf4 {[%clk 0:01:07]}  cxb5 {[%clk 0:00:30]} 34. axb5 {[%clk 0:01:07]}  Ke7 {[%clk 0:00:28]} 35. Rh8 {[%clk 0:01:07]}  Kd7 {[%clk 0:00:24]} 36. Rd3+ {[%clk 0:01:06]}  Ke7 {[%clk 0:00:22]} 37. c6 {[%clk 0:01:03]}  bxc6 {[%clk 0:00:22]} 38. bxc6 {[%clk 0:01:04]}  Nc4 {[%clk 0:00:19]} 39. Kg2 {[%clk 0:00:59]}  Ra2 {[%clk 0:00:15]} 40. Rxb8 {[%clk 0:00:57]}  Nxe3+ {[%clk 0:00:15]} 41. Rxe3 {[%clk 0:00:57]}  Rxe3 {[%clk 0:00:16]} 42. Nd5+ {[%clk 0:00:57]} 1-0


[Site "https://www.chess.com"]

[Event "Titled Tuesday Blitz January 10 Early 2023"]
[White "Chigaev, Maksim"]
[Black "Aradhya, Garg"]
[WhiteFideId "4108116"]
[BlackFideId "25006746"]
[WhiteElo "2628"]
[BlackElo "2284"]
[Result "1-0"]
[Round "03"]
[TimeControl "180+2"]
[Date "2023.01.10"]
[WhiteClock "0:00:27"]
[BlackClock "0:00:09"]

1. e4 {[%clk 0:03:00]}  e5 {[%clk 0:02:59]} 2. Bc4 {[%clk 0:03:00]}  Nf6 {[%clk 0:02:58]} 3. d3 {[%clk 0:03:01]}  Nc6 {[%clk 0:02:58]} 4. Nf3 {[%clk 0:03:00]}  Bc5 {[%clk 0:02:57]} 5. c3 {[%clk 0:03:00]}  O-O {[%clk 0:02:56]} 6. Bg5 {[%clk 0:02:59]}  h6 {[%clk 0:02:55]} 7. Bh4 {[%clk 0:02:59]}  Be7 {[%clk 0:02:55]} 8. Nbd2 {[%clk 0:02:58]}  d5 {[%clk 0:02:52]} 9. Bxf6 {[%clk 0:02:52]}  Bxf6 {[%clk 0:02:52]} 10. Bxd5 {[%clk 0:02:46]}  Ne7 {[%clk 0:02:51]} 11. Bc4 {[%clk 0:02:47]}  Ng6 {[%clk 0:02:41]} 12. g3 {[%clk 0:02:38]}  Bh3 {[%clk 0:02:40]} 13. Qe2 {[%clk 0:02:39]}  Qd7 {[%clk 0:02:39]} 14. O-O-O {[%clk 0:02:37]}  Rfd8 {[%clk 0:02:38]} 15. Nf1 {[%clk 0:02:31]}  b5 {[%clk 0:01:39]} 16. Bb3 {[%clk 0:02:29]}  Be6 {[%clk 0:01:40]} 17. Ne3 {[%clk 0:02:14]}  Bxb3 {[%clk 0:01:39]} 18. axb3 {[%clk 0:02:14]}  Qe6 {[%clk 0:01:33]} 19. Qc2 {[%clk 0:01:58]}  Ne7 {[%clk 0:01:24]} 20. h4 {[%clk 0:01:56]}  a5 {[%clk 0:01:20]} 21. g4 {[%clk 0:01:54]}  g6 {[%clk 0:01:19]} 22. Kb1 {[%clk 0:01:51]}  a4 {[%clk 0:01:19]} 23. b4 {[%clk 0:01:52]}  a3 {[%clk 0:01:19]} 24. b3 {[%clk 0:01:52]}  Rdc8 {[%clk 0:01:15]} 25. g5 {[%clk 0:01:32]}  hxg5 {[%clk 0:01:03]} 26. Nxg5 {[%clk 0:01:22]}  Qd6 {[%clk 0:00:48]} 27. Ka2 {[%clk 0:01:04]}  c5 {[%clk 0:00:48]} 28. Nf3 {[%clk 0:01:04]}  cxb4 {[%clk 0:00:44]} 29. c4 {[%clk 0:01:05]}  Nc6 {[%clk 0:00:37]} 30. h5 {[%clk 0:01:03]}  Na5 {[%clk 0:00:16]} 31. hxg6 {[%clk 0:00:58]}  fxg6 {[%clk 0:00:17]} 32. Rdg1 {[%clk 0:00:58]}  Bg7 {[%clk 0:00:14]} 33. Rg3 {[%clk 0:00:47]}  bxc4 {[%clk 0:00:14]} 34. dxc4 {[%clk 0:00:46]}  Rd8 {[%clk 0:00:14]} 35. Nd5 {[%clk 0:00:43]}  Rf8 {[%clk 0:00:09]} 36. Rhg1 {[%clk 0:00:42]}  Nc6 {[%clk 0:00:07]} 37. Rxg6 {[%clk 0:00:38]}  Qxg6 {[%clk 0:00:07]} 38. Rxg6 {[%clk 0:00:38]}  Rxf3 {[%clk 0:00:08]} 39. Rxc6 {[%clk 0:00:33]}  Raf8 {[%clk 0:00:07]} 40. Ne7+ {[%clk 0:00:32]}  Kh7 {[%clk 0:00:05]} 41. Nf5 {[%clk 0:00:32]}  Rd8 {[%clk 0:00:05]} 42. Rc7 {[%clk 0:00:20]}  Rfd3 {[%clk 0:00:05]} 43. Rxg7+ {[%clk 0:00:20]}  Kh8 {[%clk 0:00:06]} 44. Rg2 {[%clk 0:00:15]}  Rd2 {[%clk 0:00:06]} 45. f3 {[%clk 0:00:16]}  Rxc2+ {[%clk 0:00:06]} 46. Rxc2 {[%clk 0:00:17]}  Rd3 {[%clk 0:00:06]} 47. c5 {[%clk 0:00:17]}  Rxf3 {[%clk 0:00:06]} 48. c6 {[%clk 0:00:18]}  Rc3 {[%clk 0:00:04]} 49. Rxc3 {[%clk 0:00:18]}  bxc3 {[%clk 0:00:05]} 50. c7 {[%clk 0:00:19]}  c2 {[%clk 0:00:05]} 51. c8=Q+ {[%clk 0:00:20]}  Kh7 {[%clk 0:00:06]} 52. Qxc2 {[%clk 0:00:20]}  Kg6 {[%clk 0:00:07]} 53. Kxa3 {[%clk 0:00:21]}  Kf6 {[%clk 0:00:07]} 54. b4 {[%clk 0:00:22]}  Kg5 {[%clk 0:00:08]} 55. b5 {[%clk 0:00:23]}  Kf4 {[%clk 0:00:08]} 56. b6 {[%clk 0:00:24]}  Kf3 {[%clk 0:00:09]} 57. b7 {[%clk 0:00:25]}  Kf4 {[%clk 0:00:10]} 58. b8=Q {[%clk 0:00:26]}  Kf3 {[%clk 0:00:10]} 59. Qxe5 {[%clk 0:00:26]}  Kg4 {[%clk 0:00:09]} 60. Qg2+ {[%clk 0:00:27]}  Kh5 {[%clk 0:00:09]} 61. Qh8# {[%clk 0:00:27]} 1-0


[Site "https://www.chess.com"]